{"text_format":"1","workbook":"xlsx","n_sheets":4,"sheets":["Escola","Alunos","dados","listas"],"not_rendered":{"charts":0,"images":0,"macros":1,"external_links":0,"defined_names":0,"comments":0,"pivot_tables":0},"unopened":[],"bounds":{"document_bytes":16777216,"sheet_cells":100000,"rows_first":2000,"rows_last":500,"rows_between":2000,"halvings":0,"cell_chars":16384,"cell_head_chars":4096},"cells_cut":0,"cells_raw":0,"read":"whole","date_system":"1900"}

{"sheet":"Escola","index":0,"n_rows":62,"n_cols":4,"rows_kept":62,"cut":false,"hidden":false,"merged":[[2,1,2,3],[3,1,3,3],[0,0,0,4]]}
["*habilite o conteúdo de macros para que o formulário funcione corretamente."]
[]
[null,"Formulário de inscrição para a\nIV Edição das Olimpíadas de Português como Língua de Herança"]
[null,"Dados da instituição"]
[null,null,null,"Todos os campos são obrigatórios"]
[null,1,".","Nome completo da instituição"]
[]
[null,null,null,">"]
[]
[null,{"$f":"B6+1","v":2},".","Endereço completo da instituição"]
[null,null,null,"Por favor incluir o número de código postal"]
[]
[null,null,null,">"]
[]
[null,{"$f":"B10+1","v":3},".","Número de telefone"]
[]
[null,null,null,"0000-00-0000"]
[]
[null,{"$f":"B15+1","v":4},".","E-mail"]
[]
[null,null,null,"usuario@dominio.com"]
[null,null,null,{"$f":"IF(EmailEhValido(D21), \"\", \"*Endereço de e-mail inválido.\")","v":""}]
[null,{"$f":"B19+1","v":5},".","Confirmação de e-mail"]
[]
[null,null,null,"usuario@dominio.com"]
[null,null,null,{"$f":"IF(EmailEhValido(D25), \"\", \"*Endereço de e-mail inválido.\")","v":""}]
[null,{"$f":"B23+1","v":6},".","Nome completo do(a) responsável"]
[]
[null,null,null,">"]
[]
[null,{"$f":"B27+1","v":7},".","Termo de ciência"]
[]
[null,null,null,"Tomei conhecimento do conteúdo do Edital nº 04/2025, de 08/07/2025, e aceito as normas e regulamentos que regem a IV Edição das Olimpíadas de Português como Língua de Herança."]
[]
[null,null,null,"sim"]
[]
[null,{"$f":"B31+1","v":8},".","Número de participantes (preencher com numeral)"]
[]
[null,null,null,1]
[]
[]
[]
[]
[]
[]
[]
[]
[]
[]
[]
[]
[]
[]
[]
[]
[]
[]
[]
[]
[]
[]
[null,null,null,"Nome completo da escola"]

{"sheet":"Alunos","index":1,"n_rows":63,"n_cols":9,"rows_kept":63,"cut":false,"hidden":false,"merged":[[0,0,0,8],[1,0,1,8]]}
["Formulário de inscrição para a\nIV Edição das Olimpíadas de Português como Língua de Herança"]
["Dados dos(as) participantes"]
["nº","Nome completo \n(*confira com cuidado a grafia do nome digitado, pois ele será usado para a confecção dos certificados)","Data de nascimento","Idade","Nacionalidade","Código Postal","Endereço","Categoria","Autorizo a utilização dos dados  do(a) partocipante e a publicação dos materiais (desenhos, textos, vídeos etc.) produzidos no âmbito da IV Edição das Olimpíadas de Português como Língua de Herança."]
[{"$f":"ROW()-3","v":1}]
[2]
[3]
[4]
[5]
[6]
[7]
[8]
[9]
[10]
[11]
[12]
[13]
[14]
[15]
[16]
[17]
[18]
[19]
[20]
[21]
[22]
[23]
[24]
[25]
[26]
[27]
[28]
[29]
[30]
[31]
[32]
[{"$f":"ROW()-3","v":33}]
[34]
[35]
[36]
[37]
[38]
[39]
[40]
[41]
[42]
[43]
[44]
[45]
[46]
[47]
[48]
[49]
[50]
[51]
[52]
[53]
[54]
[55]
[56]
[57]
[58]
[59]
[60]

{"sheet":"dados","index":2,"n_rows":2,"n_cols":8,"rows_kept":2,"cut":false,"hidden":true,"merged":[]}
["Nome completo da escola","Endereço completo da escola","Número de telefone","E-mail","Confirmação de e-mail","Nome completo do responsável","Termo de ciência","Número de participantes"]
[{"$f":"Escola!D8","v":">"},{"$f":"Escola!D13","v":">"},{"$f":"Escola!D17","v":"0000-00-0000"},{"$f":"Escola!D21","v":"usuario@dominio.com"},{"$f":"Escola!D25","v":"usuario@dominio.com"},{"$f":"Escola!D29","v":">"},{"$f":"Escola!D35","v":"sim"},{"$f":"Escola!D39","v":1}]

{"sheet":"listas","index":3,"n_rows":9,"n_cols":7,"rows_kept":9,"cut":false,"hidden":true,"merged":[]}
["Termo de ciência","Validações","Categorias","senha",null,null,"códigos"]
["sim","Número de telefone","Categoria A: crianças de 5 a 8 anos","oplh2025",null,null,"[=OU(E(NÚM.CARACT(C15)=13;EXT.TEXTO(C15;4;1)=\"-\";EXT.TEXTO(C15;9;1)=\"-\";ÉNÚM(VALOR(SUBSTITUIR(C15;\"-\";\"\"))));E(NÚM.CARACT(C15)=12;EXT.TEXTO(C15;5;1)=\"-\";EXT.TEXTO(C15;8;1)=\"-\";ÉNÚM(VALOR(SUBSTITUIR(C15;\"-\";\"\")))))]"]
[null,"Endereço de e-mail","Categoria B-I: crianças de 9 a 12 anos"]
[null,null,"Categoria B-II: adolescentes de 13 a 15 anos"]
[]
[]
[null,null,"Nacionalidade"]
[null,null,"brasileira"]
[null,null,"outra"]